[Event "Polish Youth G16 Championship 2023"]
[Site "Jastrzebia Gora"]
[Date "2023.03.13"]
[Round "2.21"]
[White "Domeradzka, Karolina"]
[Black "Sliwicka, Weronika"]
[Result "0-1"]
[ECO "B43"]
[WhiteElo "1194"]
[BlackElo "1374"]
[Annotator "NA RC COMBH"]
[PlyCount "118"]
[EventDate "2023.03.11"]
[EventType "swiss"]
[EventCountry "POL"]
[SourceTitle "playchess.com"]
[Source "ChessBase"]
[SourceQuality "1"]
[TimeControl "40/5400+30:1800+30"]

1. e4 {[%emt 0:00:03]} c5 {[%emt 0:00:04]} 2. Nc3 {[%emt 0:00:21]} e6 {[%emt 0:00:27]} 3. Nf3 {[%emt 0:00:22]} a6 4. d4 {[%emt 0:02:09]} cxd4 {[%emt 0:01:06]} 5. Nxd4 {[%emt 0:00:11]} Qc7 {[%emt 0:00:29]} 6. g3 {[%emt 0:02:27]} Nf6 {[%emt 0:03:07]} 7. Bg2 {[%emt 0:01:27]} Bb4 {[%emt 0:03:22]} 8. Bd2 {[%emt 0:01:08]} d6 {[%emt 0:12:20]} 9. Qe2 {[%emt 0:14:44]} Bd7 {[%emt 0:04:56]} 10. f4 {[%emt 0:26:45]} Nc6 {[%emt 0:02:23]} 11. Nf3 {[%emt 0:03:27]} O-O-O {[%emt 0:07:13]} 12. O-O-O {[%emt 0:01:53]} e5 {[%emt 0:04:14]} 13. fxe5 {[%emt 0:07:41]} Nxe5 {[%emt 0:01:36]} 14. Nxe5 {[%emt 0:02:07]} dxe5 {[%emt 0:00:27]} 15. Nd5 {[%emt 0:01:49]} Nxd5 {[%emt 0:06:55]} 16. exd5 {[%emt 0:00:14]} Bxd2+ {[%emt 0:01:15]} 17. Rxd2 {[%emt 0:00:22]} Qd6 {[%emt 0:03:05]} 18. Rd3 {[%emt 0:05:33]} Kb8 {[%emt 0:00:39]} 19. Rb3 {[%emt 0:00:18]} Rc8 {[%emt 0:01:17]} 20. Re3 {[%emt 0:24:57]} f6 {[%emt 0:01:46]} 21. Rd1 {[%emt 0:00:18]} Ba4 {[%emt 0:00:28]} 22. Rd2 {[%emt 0:00:22]} Bd7 {[%emt 0:06:23]} 23. g4 {[%emt 0:01:41]} Bb5 {[%emt 0:01:04]} 24. Qf2 {[%emt 0:00:11]} Rc4 {[%emt 0:02:45]} 25. h3 {[%emt 0:00:22]} Rhc8 {[%emt 0:02:00]} 26. Kb1 {[%emt 0:00:04]} Rf4 {[%emt 0:03:10]} 27. Rf3 {[%emt 0:00:53]} Rxf3 {[%emt 0:00:23]} 28. Qxf3 {[%emt 0:00:05]} Rc4 {[%emt 0:03:47]} 29. b3 {[%emt 0:00:38]} Rf4 {[%emt 0:00:46]} 30. Qe3 {[%emt 0:00:11]} Bf1 {[%emt 0:14:32]} 31. Bh1 {[%emt 0:00:18]} Bb5 {[%emt 0:02:50]} 32. c4 {[%emt 0:00:03]} Rf1+ {[%emt 0:00:45]} 33. Kb2 {[%emt 0:00:33]} Rxh1 {[%emt 0:02:48]} 34. cxb5 {[%emt 0:00:34]} axb5 {[%emt 0:00:36]} 35. Qf3 {[%emt 0:00:19]} Qb4 {[%emt 0:01:18]} 36. Qd3 {[%emt 0:02:58]} Rxh3 {[%emt 0:00:24]} 37. Qc2 {[%emt 0:00:22]} Qd6 {[%emt 0:03:21]} 38. Qf5 {[%emt 0:00:03]} Qb4 {[%emt 0:03:04]} 39. Qc2 {[%emt 0:00:20]} Qd6 {[%emt 0:01:14]} 40. Qf5 {[%emt 0:00:00]} e4 {[%emt 0:00:00]} 41. Qxe4 {[%emt 0:02:49]} Qe5+ {[%emt 0:01:41]} 42. Qxe5+ {[%emt 0:16:55]} fxe5 {[%emt 0:00:26]} 43. Re2 {[%emt 0:01:44]} Rg3 {[%emt 0:00:14]} 44. Re4 {[%emt 0:00:06]} Kc7 {[%emt 0:00:49]} 45. Rxe5 {[%emt 0:00:44]} Rxg4 {[%emt 0:01:14]} 46. Re7+ {[%emt 0:00:51]} Kd6 {[%emt 0:00:06]} 47. Rxb7 {[%emt 0:00:16]} b4 {[%emt 0:00:17]} 48. a4 {[%emt 0:01:07]} bxa3+ {[%emt 0:01:34]} 49. Kxa3 {[%emt 0:00:03]} Kxd5 {[%emt 0:00:10]} 50. b4 {[%emt 0:00:24]} Kc6 {[%emt 0:00:19]} 51. Re7 {[%emt 0:00:19]} h5 {[%emt 0:02:09]} 52. Ka4 {[%emt 0:00:04]} Rg1 {[%emt 0:01:02]} 53. Re6+ {[%emt 0:00:33]} Kd5 {[%emt 0:00:24]} 54. Re3 {[%emt 0:00:15]} g5 {[%emt 0:00:27]} 55. b5 {[%emt 0:00:16]} g4 {[%emt 0:01:03]} 56. Rb3 {[%emt 0:03:24]} g3 {[%emt 0:00:30]} 57. Rb2 {[%emt 0:00:47]} g2 {[%emt 0:00:15]} 58. Kb4 {[%emt 0:00:30]} h4 {[%emt 0:00:27]} 59. b6 {[%emt 0:01:59]} Kc6 {[%emt 0:00:06]} 0-1

[Event "Polish Youth G16 Championship 2023"]
[Site "Jastrzebia Gora"]
[Date "2023.03.13"]
[Round "2.22"]
[White "Gajec, Roza"]
[Black "Butkiewicz, Hanna"]
[Result "0-1"]
[ECO "C66"]
[WhiteElo "1341"]
[BlackElo "1120"]
[Annotator "NA RC COMBH"]
[PlyCount "128"]
[EventDate "2023.03.11"]
[EventType "swiss"]
[EventCountry "POL"]
[SourceTitle "playchess.com"]
[Source "ChessBase"]
[SourceQuality "1"]
[TimeControl "40/5400+30:1800+30"]

1. e4 {[%emt 0:00:02]} e5 {[%emt 0:00:07]} 2. Nf3 {[%emt 0:00:03]} Nc6 {[%emt 0:00:07]} 3. Bb5 {[%emt 0:00:05]} Nf6 {[%emt 0:00:28]} 4. O-O {[%emt 0:00:08]} d6 {[%emt 0:00:14]} 5. Re1 {[%emt 0:00:22]} Bg4 {[%emt 0:00:10]} 6. c3 {[%emt 0:00:40]} a6 {[%emt 0:00:11]} 7. Ba4 {[%emt 0:00:06]} Be7 {[%emt 0:00:21]} 8. h3 {[%emt 0:01:00]} Bh5 {[%emt 0:00:17]} 9. d3 {[%emt 0:01:08]} O-O {[%emt 0:00:13]} 10. Nbd2 {[%emt 0:00:10]} Nd7 {[%emt 0:03:44]} 11. Nf1 {[%emt 0:04:48]} Bh4 {[%emt 0:06:50]} 12. Ng3 {[%emt 0:05:38]} Bxf3 {[%emt 0:08:12]} 13. Qxf3 {[%emt 0:00:13]} Nc5 {[%emt 0:01:34]} 14. Bc2 {[%emt 0:00:38]} g6 {[%emt 0:06:43]} 15. Bh6 {[%emt 0:04:27]} Re8 {[%emt 0:01:04]} 16. Qg4 {[%emt 0:08:21]} Ne6 {[%emt 0:05:00]} 17. Bb3 {[%emt 0:04:17]} Bg5 {[%emt 0:04:18]} 18. Bxg5 {[%emt 0:01:52]} Nxg5 {[%emt 0:02:00]} 19. h4 {[%emt 0:00:58]} Ne6 {[%emt 0:01:18]} 20. Re3 {[%emt 0:03:33]} Nf4 {[%emt 0:03:49]} 21. h5 {[%emt 0:07:07]} Na5 {[%emt 0:06:18]} 22. hxg6 {[%emt 0:04:47]} hxg6 {[%emt 0:00:16]} 23. Bc2 {[%emt 0:01:02]} Kh7 {[%emt 0:03:46]} 24. Ne2 {[%emt 0:12:44]} Nxe2+ {[%emt 0:01:12]} 25. Qxe2 {[%emt 0:00:07]} Rh8 {[%emt 0:00:23]} 26. Rh3+ {[%emt 0:00:58]} Kg7 {[%emt 0:00:11]} 27. Qg4 {[%emt 0:04:39]} Rxh3 {[%emt 0:04:13]} 28. Qxh3 {[%emt 0:03:27]} Qe7 {[%emt 0:00:15]} 29. g3 {[%emt 0:01:45]} Rh8 {[%emt 0:00:10]} 30. Qg4 {[%emt 0:00:57]} Rh5 {[%emt 0:01:44]} 31. b4 {[%emt 0:03:27]} Nc6 {[%emt 0:02:06]} 32. Bd1 {[%emt 0:06:45]} Qd8 {[%emt 0:02:15]} 33. Qf3 {[%emt 0:01:33]} Qh8 {[%emt 0:00:49]} 34. Qg2 {[%emt 0:00:53]} Rh7 {[%emt 0:01:48]} 35. Bb3 {[%emt 0:01:07]} Qd8 {[%emt 0:01:02]} 36. Qf3 {[%emt 0:00:57]} Kf8 {[%emt 0:00:48]} 37. Kg2 {[%emt 0:00:22]} Qd7 {[%emt 0:01:39]} 38. Rh1 {[%emt 0:02:16]} Rxh1 {[%emt 0:01:51]} 39. Kxh1 {[%emt 0:00:08]} Nd8 {[%emt 0:00:36]} 40. Qf6 {[%emt 0:00:00]} Kg8 {[%emt 0:00:00]} 41. Qxg6+ Kf8 {[%emt 0:02:01]} 42. Qh6+ {[%emt 0:03:23]} Ke7 {[%emt 0:01:58]} 43. Qg5+ {[%emt 0:00:42]} Kf8 {[%emt 0:00:41]} 44. Kg2 {[%emt 0:03:23]} Ke8 {[%emt 0:01:34]} 45. Qg8+ {[%emt 0:05:34]} Ke7 {[%emt 0:00:17]} 46. f4 {[%emt 0:06:50]} exf4 {[%emt 0:00:45]} 47. gxf4 {[%emt 0:00:12]} Qc6 {[%emt 0:00:24]} 48. Qg5+ {[%emt 0:01:11]} Ke8 {[%emt 0:00:23]} 49. Qf6 {[%emt 0:00:22]} Qb5 {[%emt 0:00:48]} 50. Bc4 {[%emt 0:00:54]} Qh5 {[%emt 0:00:46]} 51. d4 {[%emt 0:01:01]} Qg4+ {[%emt 0:00:23]} 52. Kf2 {[%emt 0:01:08]} Qd1 {[%emt 0:00:14]} 53. Qh8+ {[%emt 0:00:59]} Ke7 {[%emt 0:00:15]} 54. d5 {[%emt 0:02:15]} Qd2+ {[%emt 0:01:22]} 55. Kf3 {[%emt 0:00:21]} f6 {[%emt 0:00:13]} 56. Qg7+ {[%emt 0:04:21]} Nf7 {[%emt 0:00:12]} 57. e5 {[%emt 0:02:36]} Qxc3+ {[%emt 0:00:35]} 58. Kg2 {[%emt 0:05:56]} fxe5 {[%emt 0:00:55]} 59. Be2 {[%emt 0:02:05]} Qd2 {[%emt 0:01:44]} 60. Qg4 {[%emt 0:00:59]} Qxd5+ {[%emt 0:00:17]} 61. Kh2 {[%emt 0:01:31]} Qxa2 {[%emt 0:00:44]} 62. Kh3 {[%emt 0:00:47]} Qe6 {[%emt 0:01:09]} 63. f5 {[%emt 0:00:17]} Qh6+ {[%emt 0:00:27]} 64. Kg2 {[%emt 0:00:14]} Qg5 {[%emt 0:00:25]} 0-1

[Event "Polish Youth G16 Championship 2023"]
[Site "Jastrzebia Gora"]
[Date "2023.03.13"]
[Round "2.23"]
[White "Danek, Wiktoria"]
[Black "Ekner, Maria"]
[Result "1/2-1/2"]
[ECO "D30"]
[WhiteElo "1161"]
[BlackElo "1337"]
[Annotator "NA RC COMBH"]
[PlyCount "62"]
[EventDate "2023.03.11"]
[EventType "swiss"]
[EventCountry "POL"]
[SourceTitle "playchess.com"]
[Source "ChessBase"]
[SourceQuality "1"]
[TimeControl "40/5400+30:1800+30"]

1. d4 d5 2. c4 e6 3. Nf3 Nf6 4. Bg5 c5 5. e3 cxd4 6. Qxd4 Be7 7. cxd5 exd5 8. Nc3 Nc6 9. Qd1 Be6 10. Be2 O-O 11. O-O Ne4 12. Bxe7 Nxc3 13. Bxd8 Nxd1 14. Rfxd1 Rfxd8 15. a3 f6 16. Rac1 a6 17. h3 Rac8 18. Rc3 Ne5 19. Rxc8 Rxc8 20. Nd4 Kf7 21. Rd2 Rc1+ 22. Kh2 Nc4 23. Bxc4 dxc4 24. Nxe6 Kxe6 25. Kg3 c3 26. bxc3 Rxc3 27. Rb2 b5 28. a4 bxa4 29. Rb6+ Kd5 30. Rxa6 a3 31. Ra4 Kc5 1/2-1/2

[Event "Polish Youth G16 Championship 2023"]
[Site "Jastrzebia Gora"]
[Date "2023.03.13"]
[Round "3.1"]
[White "Seemann, Pola"]
[Black "Ziobrowska, Maja"]
[Result "0-1"]
[ECO "C27"]
[WhiteElo "1714"]
[BlackElo "1758"]
[Annotator "NA RC COMBH"]
[PlyCount "104"]
[EventDate "2023.03.11"]
[EventType "swiss"]
[EventCountry "POL"]
[SourceTitle "playchess.com"]
[Source "ChessBase"]
[SourceQuality "1"]
[TimeControl "40/5400+30:1800+30"]

1. e4 {[%emt 0:00:02]} e5 {[%emt 0:00:05]} 2. Nc3 {[%emt 0:00:04]} Nf6 {[%emt 0:00:05]} 3. Bc4 {[%emt 0:00:03]} Nxe4 {[%emt 0:00:06]} 4. Qh5 {[%emt 0:00:07]} Nd6 {[%emt 0:00:08]} 5. Bb3 {[%emt 0:00:05]} Be7 {[%emt 0:00:07]} 6. Qxe5 {[%emt 0:00:05]} O-O {[%emt 0:00:13]} 7. d4 {[%emt 0:00:05]} Nc6 {[%emt 0:00:04]} 8. Qf4 {[%emt 0:00:07]} Na5 {[%emt 0:00:04]} 9. Nd5 {[%emt 0:03:33]} Nxb3 {[%emt 0:02:55]} 10. axb3 {[%emt 0:00:09]} b6 {[%emt 0:04:46]} 11. Nf3 {[%emt 0:04:15]} Bb7 {[%emt 0:00:43]} 12. Nxe7+ {[%emt 0:00:12]} Qxe7+ {[%emt 0:00:04]} 13. Be3 {[%emt 0:00:53]} a5 {[%emt 0:04:43]} 14. O-O {[%emt 0:02:13]} Qe4 {[%emt 0:01:53]} 15. c3 {[%emt 0:01:52]} Nf5 {[%emt 0:02:24]} 16. Qxc7 {[%emt 0:07:46]} Nxe3 {[%emt 0:12:29]} 17. fxe3 {[%emt 0:00:06]} Qxe3+ {[%emt 0:01:40]} 18. Kh1 {[%emt 0:00:05]} Bxf3 {[%emt 0:00:22]} 19. Rxf3 {[%emt 0:00:07]} Qe6 {[%emt 0:00:03]} 20. c4 {[%emt 0:02:13]} Rac8 {[%emt 0:01:59]} 21. Qg3 {[%emt 0:09:31]} d5 {[%emt 0:02:18]} 22. Re1 {[%emt 0:03:22]} Qd7 {[%emt 0:00:58]} 23. cxd5 {[%emt 0:07:19]} Qxd5 {[%emt 0:00:19]} 24. Qg4 {[%emt 0:00:57]} Rcd8 {[%emt 0:02:00]} 25. Rd1 {[%emt 0:02:50]} Rfe8 {[%emt 0:01:44]} 26. Rfd3 {[%emt 0:06:31]} Re4 {[%emt 0:05:05]} 27. Qg3 {[%emt 0:03:39]} Rde8 {[%emt 0:01:17]} 28. h3 {[%emt 0:01:20]} h6 {[%emt 0:03:11]} 29. Kh2 {[%emt 0:07:19]} R8e6 {[%emt 0:01:49]} 30. R3d2 {[%emt 0:10:35]} Re3 {[%emt 0:03:18]} 31. Qb8+ {[%emt 0:03:23]} Kh7 {[%emt 0:00:10]} 32. Rf1 {[%emt 0:07:32]} Rg6 {[%emt 0:09:32]} 33. Qc7 {[%emt 0:03:13]} Rxb3 {[%emt 0:02:12]} 34. Qxf7 {[%emt 0:01:22]} Qxf7 {[%emt 0:07:30]} 35. Rxf7 {[%emt 0:00:07]} Rd6 {[%emt 0:00:06]} 36. d5 {[%emt 0:04:28]} Kg6 {[%emt 0:02:23]} 37. Re7 {[%emt 0:00:13]} Kf6 {[%emt 0:00:40]} 38. Re1 {[%emt 0:00:20]} Rb5 {[%emt 0:03:50]} 39. Red1 {[%emt 0:00:42]} g5 {[%emt 0:02:10]} 40. g3 {[%emt 0:00:00]} a4 {[%emt 0:00:00]} 41. Kg2 {[%emt 0:01:36]} Rb3 {[%emt 0:03:09]} 42. Rf1+ {[%emt 0:01:48]} Ke7 {[%emt 0:04:51]} 43. Re1+ {[%emt 0:03:39]} Kd7 {[%emt 0:01:16]} 44. Re4 {[%emt 0:00:14]} b5 {[%emt 0:01:06]} 45. Red4 {[%emt 0:01:38]} Rf6 {[%emt 0:03:15]} 46. d6 {[%emt 0:04:43]} Rff3 {[%emt 0:01:26]} 47. Rg4 {[%emt 0:00:06]} Rfd3 {[%emt 0:01:39]} 48. Rd4 {[%emt 0:01:54]} Rxd4 {[%emt 0:00:56]} 49. Rxd4 {[%emt 0:00:06]} Rxb2+ {[%emt 0:00:04]} 50. Kf3 {[%emt 0:00:04]} a3 {[%emt 0:00:46]} 51. Rd3 {[%emt 0:00:29]} a2 {[%emt 0:00:21]} 52. Ra3 {[%emt 0:00:08]} Rb3+ {[%emt 0:00:10]} 0-1

[Event "Polish Youth G16 Championship 2023"]
[Site "Jastrzebia Gora"]
[Date "2023.03.13"]
[Round "3.2"]
[White "Kawa, Anna"]
[Black "Tokarz, Izabela"]
[Result "1/2-1/2"]
[ECO "B28"]
[WhiteElo "1743"]
[BlackElo "1725"]
[Annotator "NA RC COMBH"]
[PlyCount "114"]
[EventDate "2023.03.11"]
[EventType "swiss"]
[EventCountry "POL"]
[SourceTitle "playchess.com"]
[Source "ChessBase"]
[SourceQuality "1"]
[TimeControl "40/5400+30:1800+30"]

1. e4 {[%emt 0:00:05]} c5 {[%emt 0:00:05]} 2. Nf3 {[%emt 0:00:26]} a6 {[%emt 0:00:03]} 3. d3 {[%emt 0:00:47]} b5 {[%emt 0:01:15]} 4. g3 {[%emt 0:01:28]} Bb7 {[%emt 0:00:04]} 5. Bg2 {[%emt 0:00:55]} e6 {[%emt 0:00:06]} 6. Be3 {[%emt 0:02:20]} d6 {[%emt 0:01:18]} 7. Nbd2 {[%emt 0:02:41]} Nf6 {[%emt 0:00:16]} 8. c3 {[%emt 0:02:50]} Be7 {[%emt 0:01:22]} 9. O-O {[%emt 0:01:05]} O-O {[%emt 0:00:18]} 10. Re1 {[%emt 0:01:44]} Ng4 {[%emt 0:13:41]} 11. Nf1 {[%emt 0:13:02]} Nxe3 {[%emt 0:03:56]} 12. Rxe3 {[%emt 0:04:00]} Nd7 {[%emt 0:00:56]} 13. a3 {[%emt 0:02:28]} Nf6 {[%emt 0:02:30]} 14. h3 {[%emt 0:01:14]} Qb6 {[%emt 0:07:45]} 15. N3d2 {[%emt 0:06:04]} a5 {[%emt 0:05:00]} 16. Re1 {[%emt 0:09:56]} Bc6 {[%emt 0:03:20]} 17. Ne3 {[%emt 0:02:43]} b4 {[%emt 0:02:20]} 18. Ndc4 {[%emt 0:01:05]} Qb5 {[%emt 0:03:12]} 19. e5 {[%emt 0:08:10]} dxe5 {[%emt 0:01:52]} 20. Bxc6 {[%emt 0:05:39]} Qxc6 {[%emt 0:00:06]} 21. Nxe5 {[%emt 0:00:09]} Qc7 {[%emt 0:05:02]} 22. N3c4 {[%emt 0:01:43]} Nd5 {[%emt 0:05:12]} 23. Qc2 {[%emt 0:05:50]} Kh8 {[%emt 0:01:15]} 24. axb4 {[%emt 0:02:17]} cxb4 {[%emt 0:00:14]} 25. Ra4 {[%emt 0:03:20]} Bf6 {[%emt 0:01:29]} 26. Ng4 {[%emt 0:00:45]} Rfc8 {[%emt 0:14:54]} 27. Nxf6 {[%emt 0:01:36]} gxf6 {[%emt 0:00:06]} 28. Rea1 {[%emt 0:00:31]} Nb6 {[%emt 0:01:29]} 29. Nxb6 {[%emt 0:07:22]} Qxb6 {[%emt 0:00:02]} 30. Qb3 {[%emt 0:00:39]} Rab8 {[%emt 0:03:18]} 31. Rxa5 {[%emt 0:01:57]} bxc3 {[%emt 0:00:08]} 32. Qxb6 {[%emt 0:00:27]} Rxb6 {[%emt 0:00:02]} 33. Ra8 {[%emt 0:03:12]} Rbc6 {[%emt 0:00:25]} 34. Rxc8+ {[%emt 0:00:12]} Rxc8 {[%emt 0:00:01]} 35. Rc1 {[%emt 0:00:24]} c2 {[%emt 0:04:30]} 36. Kf1 {[%emt 0:00:09]} Kg7 {[%emt 0:00:05]} 37. Ke2 {[%emt 0:00:03]} f5 {[%emt 0:00:03]} 38. Kd2 {[%emt 0:03:17]} f4 {[%emt 0:01:11]} 39. Rxc2 {[%emt 0:00:59]} Rb8 {[%emt 0:00:02]} 40. Kc1 {[%emt 0:00:00]} fxg3 {[%emt 0:00:00]} 41. fxg3 {[%emt 0:03:06]} h5 {[%emt 0:02:12]} 42. Rc4 {[%emt 0:01:26]} f5 {[%emt 0:00:21]} 43. b4 {[%emt 0:01:36]} Kf6 {[%emt 0:01:13]} 44. Kc2 {[%emt 0:01:05]} Rg8 {[%emt 0:00:57]} 45. g4 {[%emt 0:16:04]} hxg4 {[%emt 0:00:50]} 46. hxg4 {[%emt 0:00:04]} fxg4 {[%emt 0:00:05]} 47. Kd2 {[%emt 0:00:35]} g3 {[%emt 0:00:03]} 48. Rc1 {[%emt 0:00:16]} Kf5 {[%emt 0:00:34]} 49. Ke2 {[%emt 0:05:10]} Kg4 {[%emt 0:00:42]} 50. Rc4+ {[%emt 0:06:43]} Kh3 {[%emt 0:00:13]} 51. Kf1 {[%emt 0:00:01]} g2+ {[%emt 0:00:37]} 52. Kg1 {[%emt 0:00:04]} Rf8 {[%emt 0:00:04]} 53. Rc1 {[%emt 0:00:28]} Kg3 {[%emt 0:00:06]} 54. d4 {[%emt 0:00:24]} Rb8 {[%emt 0:02:14]} 55. Rb1 {[%emt 0:01:09]} Kf3 {[%emt 0:00:11]} 56. b5 {[%emt 0:02:19]} Ke4 {[%emt 0:00:14]} 57. Re1+ {[%emt 0:01:27]} Kxd4 {[%emt 0:00:15]} 1/2-1/2

[Event "Polish Youth G16 Championship 2023"]
[Site "Jastrzebia Gora"]
[Date "2023.03.13"]
[Round "3.3"]
[White "Salamon, Julia"]
[Black "Szczotka, Klara"]
[Result "0-1"]
[ECO "E21"]
[WhiteElo "1701"]
[BlackElo "1739"]
[Annotator "NA RC COMBH"]
[PlyCount "90"]
[EventDate "2023.03.11"]
[EventType "swiss"]
[EventCountry "POL"]
[SourceTitle "playchess.com"]
[Source "ChessBase"]
[SourceQuality "1"]
[TimeControl "40/5400+30:1800+30"]

1. d4 {[%emt 0:00:01]} Nf6 {[%emt 0:00:07]} 2. c4 {[%emt 0:00:03]} e6 {[%emt 0:00:02]} 3. Nc3 {[%emt 0:00:39]} Bb4 {[%emt 0:00:08]} 4. Nf3 {[%emt 0:01:27]} b6 {[%emt 0:00:13]} 5. e3 {[%emt 0:00:05]} O-O {[%emt 0:00:26]} 6. Bd3 {[%emt 0:01:19]} d5 {[%emt 0:00:28]} 7. cxd5 {[%emt 0:01:39]} exd5 {[%emt 0:00:17]} 8. O-O {[%emt 0:00:57]} Re8 {[%emt 0:03:11]} 9. Qc2 {[%emt 0:04:26]} Ba6 {[%emt 0:05:21]} 10. Bxa6 {[%emt 0:08:10]} Nxa6 {[%emt 0:00:01]} 11. a3 {[%emt 0:02:17]} Bf8 {[%emt 0:04:32]} 12. Rd1 {[%emt 0:03:32]} Qc8 {[%emt 0:06:13]} 13. b3 {[%emt 0:06:55]} Qb7 {[%emt 0:04:16]} 14. Bb2 {[%emt 0:03:50]} Rad8 {[%emt 0:11:29]} 15. Rac1 {[%emt 0:01:08]} c5 {[%emt 0:07:47]} 16. Qd3 {[%emt 0:03:32]} Ne4 {[%emt 0:16:09]} 17. Nb5 {[%emt 0:13:11]} f6 {[%emt 0:07:44]} 18. Ne1 {[%emt 0:05:14]} Nc7 {[%emt 0:10:01]} 19. Nxc7 {[%emt 0:04:40]} Qxc7 {[%emt 0:00:01]} 20. Qe2 {[%emt 0:02:40]} Bd6 {[%emt 0:06:52]} 21. g3 {[%emt 0:01:21]} Qf7 {[%emt 0:01:42]} 22. Rc2 {[%emt 0:00:56]} h5 {[%emt 0:01:08]} 23. Ng2 {[%emt 0:02:13]} cxd4 {[%emt 0:06:32]} 24. Rxd4 {[%emt 0:06:23]} Be5 {[%emt 0:01:23]} 25. Rb4 {[%emt 0:00:53]} Rc8 {[%emt 0:04:19]} 26. Bd4 {[%emt 0:01:31]} Qd7 {[%emt 0:01:04]} 27. Ne1 {[%emt 0:02:24]} Bd6 {[%emt 0:01:10]} 28. Ra4 {[%emt 0:00:05]} Rxc2 {[%emt 0:00:54]} 29. Qxc2 {[%emt 0:00:23]} Rc8 {[%emt 0:00:43]} 30. Qb2 {[%emt 0:01:12]} Nc5 {[%emt 0:00:36]} 31. Bxc5 {[%emt 0:01:58]} bxc5 {[%emt 0:00:33]} 32. Qd2 {[%emt 0:02:28]} Be5 {[%emt 0:00:29]} 33. f4 {[%emt 0:01:02]} Bb8 {[%emt 0:00:08]} 34. Nf3 {[%emt 0:01:28]} Re8 {[%emt 0:00:28]} 35. Kf2 {[%emt 0:00:58]} Qc6 {[%emt 0:00:35]} 36. Qc3 {[%emt 0:01:12]} a6 {[%emt 0:00:45]} 37. Rd4 {[%emt 0:00:26]} Ba7 {[%emt 0:00:38]} 38. Rd2 {[%emt 0:02:23]} Qe6 {[%emt 0:00:21]} 39. Qd3 {[%emt 0:01:37]} c4 {[%emt 0:00:32]} 40. Nd4 {[%emt 0:00:00]} cxd3 {[%emt 0:00:00]} 41. Nxe6 {[%emt 0:02:07]} Rxe6 {[%emt 0:00:12]} 42. Rxd3 {[%emt 0:00:07]} Rd6 {[%emt 0:01:11]} 43. Ke2 {[%emt 0:00:33]} Kf7 {[%emt 0:02:57]} 44. Rc3 {[%emt 0:00:21]} Bb6 {[%emt 0:01:03]} 45. Rc1 {[%emt 0:01:42]} Re6 {[%emt 0:00:20]} 0-1

[Event "Polish Youth G16 Championship 2023"]
[Site "Jastrzebia Gora"]
[Date "2023.03.13"]
[Round "3.4"]
[White "Bar, Klaudia"]
[Black "Zapalowska, Wiktoria"]
[Result "1-0"]
[ECO "B12"]
[WhiteElo "1731"]
[BlackElo "1639"]
[Annotator "NA RC COMBH"]
[PlyCount "99"]
[EventDate "2023.03.11"]
[EventType "swiss"]
[EventCountry "POL"]
[SourceTitle "playchess.com"]
[Source "ChessBase"]
[SourceQuality "1"]
[TimeControl "40/5400+30:1800+30"]

1. e4 {[%emt 0:00:02]} c6 {[%emt 0:00:23]} 2. d4 {[%emt 0:00:05]} d5 {[%emt 0:00:08]} 3. e5 {[%emt 0:00:04]} c5 {[%emt 0:00:15]} 4. dxc5 {[%emt 0:00:05]} e6 {[%emt 0:00:11]} 5. a3 {[%emt 0:00:29]} Bxc5 {[%emt 0:00:51]} 6. b4 {[%emt 0:01:05]} Be7 {[%emt 0:00:34]} 7. Nf3 {[%emt 0:03:12]} Nd7 {[%emt 0:01:35]} 8. c4 {[%emt 0:04:19]} dxc4 {[%emt 0:04:46]} 9. Bxc4 {[%emt 0:00:15]} Qc7 {[%emt 0:02:06]} 10. Bb5 {[%emt 0:00:36]} a6 {[%emt 0:00:46]} 11. Bxd7+ {[%emt 0:00:07]} Bxd7 {[%emt 0:00:20]} 12. O-O {[%emt 0:00:59]} Bb5 {[%emt 0:02:40]} 13. Re1 {[%emt 0:00:47]} Rd8 {[%emt 0:00:40]} 14. Bd2 {[%emt 0:04:12]} Nh6 {[%emt 0:01:14]} 15. Nc3 {[%emt 0:05:39]} Bc6 {[%emt 0:01:49]} 16. Qe2 {[%emt 0:13:03]} Nf5 {[%emt 0:03:34]} 17. Ne4 {[%emt 0:15:47]} h6 {[%emt 0:06:05]} 18. Rac1 {[%emt 0:04:36]} Qd7 {[%emt 0:01:36]} 19. Bc3 {[%emt 0:00:50]} Bb5 {[%emt 0:05:58]} 20. Qb2 {[%emt 0:00:26]} Bd3 {[%emt 0:04:31]} 21. Ng3 {[%emt 0:08:03]} Nxg3 {[%emt 0:01:05]} 22. hxg3 {[%emt 0:00:06]} O-O {[%emt 0:00:36]} 23. Rcd1 {[%emt 0:01:18]} Qc7 {[%emt 0:03:36]} 24. Nd4 {[%emt 0:01:09]} Bg6 {[%emt 0:00:53]} 25. Kh2 {[%emt 0:04:04]} Rd5 {[%emt 0:02:30]} 26. f4 {[%emt 0:02:21]} Rfd8 {[%emt 0:01:10]} 27. g4 {[%emt 0:01:48]} Rc8 {[%emt 0:08:09]} 28. Re3 {[%emt 0:09:49]} Qd7 {[%emt 0:03:40]} 29. Rd2 {[%emt 0:01:20]} Bd8 {[%emt 0:01:12]} 30. Nf3 {[%emt 0:03:17]} Rxd2 {[%emt 0:04:14]} 31. Qxd2 {[%emt 0:00:12]} Qxd2 {[%emt 0:01:20]} 32. Bxd2 {[%emt 0:00:32]} Bb6 {[%emt 0:00:37]} 33. Rc3 {[%emt 0:00:25]} Rd8 {[%emt 0:03:45]} 34. Be3 {[%emt 0:00:39]} Bxe3 {[%emt 0:00:27]} 35. Rxe3 {[%emt 0:00:01]} Rd3 {[%emt 0:00:38]} 36. Rxd3 {[%emt 0:01:00]} Bxd3 {[%emt 0:00:03]} 37. Nd4 {[%emt 0:00:55]} Kf8 {[%emt 0:03:29]} 38. f5 {[%emt 0:02:20]} Ke7 {[%emt 0:02:45]} 39. Kg3 {[%emt 0:00:28]} Bc4 {[%emt 0:00:44]} 40. Kh4 {[%emt 0:00:00]} Bd5 {[%emt 0:00:00]} 41. g3 {[%emt 0:11:29]} g6 {[%emt 0:04:42]} 42. f6+ {[%emt 0:03:05]} Kd8 {[%emt 0:00:13]} 43. g5 {[%emt 0:00:10]} h5 {[%emt 0:00:15]} 44. g4 {[%emt 0:00:03]} hxg4 {[%emt 0:00:15]} 45. Kxg4 {[%emt 0:00:05]} Kc7 {[%emt 0:00:19]} 46. Kf4 {[%emt 0:00:13]} Kb6 {[%emt 0:01:20]} 47. Ke3 {[%emt 0:00:37]} a5 {[%emt 0:01:46]} 48. Kd3 {[%emt 0:00:35]} axb4 {[%emt 0:00:23]} 49. axb4 {[%emt 0:00:02]} Kc7 {[%emt 0:01:55]} 50. Nb5+ {[%emt 0:01:12]} 1-0